bitfinex-derivatives/quotes_BTCF0:USTF0_20250207
["timestamp","ask_amount","ask_price","bid_price","bid_amount"]
[1738903282455,0.2037449,97668.0,97666.0,0.01014183]
[1738903283443,0.2047449,97668.0,97661.0,0.00153546]
[1738903284740,0.2505049,97668.0,97667.0,8e-08]
[1738903284949,0.2505049,97668.0,97624.0,0.00064]
[1738903284950,0.0511924,97657.0,97638.0,0.01006167]
[1738903285148,0.2048107,97637.0,97635.0,0.2048122]
[1738903286345,0.2048141,97635.0,97634.0,0.36603101]
[1738903287256,0.2048141,97635.0,97634.0,0.57084721]
[1738903287453,0.001,97637.0,97634.0,0.36603101]
[1738903287651,0.001,97635.0,97634.0,0.57084721]
[1738903288261,0.002,97635.0,97634.0,0.57084721]
[1738903288954,0.001,97635.0,97634.0,0.57084721]
[1738903289154,0.002,97635.0,97634.0,0.57084721]
[1738903289451,0.002,97635.0,97630.0,0.37119347]
[1738903289651,0.002,97635.0,97629.0,0.00056]
[1738903289852,0.2048708,97608.0,97607.0,0.3608]
[1738903291456,0.2058708,97608.0,97607.0,0.3608]
[1738903292641,0.2068708,97608.0,97607.0,0.3608]
[1738903293250,0.2068708,97608.0,97600.0,0.1]
[1738903293251,0.2048834,97602.0,97600.0,0.1]
[1738903294957,0.2058834,97602.0,97600.0,0.1]
[1738903295144,0.3608,97601.0,97600.0,0.1]
[1738903295348,0.0512224,97599.0,97574.0,0.2049402]
[1738903295554,0.2049275,97581.0,97576.0,0.204937]
[1738903295947,0.2049275,97581.0,97577.0,0.01039089]
[1738903296154,0.3608,97588.0,97561.0,0.3608]
[1738903296155,0.2049674,97562.0,97561.0,0.3608]
[1738903296550,0.3608,97562.0,97527.0,0.3608]
[1738903296750,0.2050081,97543.0,97532.0,0.42548399]
[1738903296955,0.2050081,97543.0,97535.0,0.3608]
[1738903297262,0.00015377,97547.0,97542.0,0.2050093]
[1738903297562,0.00015377,97547.0,97535.0,0.3608]
[1738903298054,0.00015377,97547.0,97545.0,0.2050021]
[1738903299255,0.00015377,97547.0,97537.0,0.12049602]
[1738903299256,0.00015377,97547.0,97537.0,0.2050183]
[1738903299459,0.2050019,97546.0,97538.0,0.2050165]
[1738903299758,0.2050052,97545.0,97538.0,0.2050165]
[1738903299959,0.2050085,97543.0,97538.0,0.3608]
[1738903300351,0.20715287,97547.0,97541.0,0.2050106]
[1738903300552,0.20615287,97547.0,97538.0,0.3608]
[1738903300862,0.001,97546.0,97543.0,0.2050066]
[1738903301662,0.20715287,97547.0,97543.0,0.2050066]
[1738903302059,0.2050219,97537.0,97535.0,0.01003135]
[1738903302255,0.2050219,97537.0,97530.0,0.2050331]
[1738903302455,0.2050219,97537.0,97532.0,0.2050293]
[1738903302657,0.2050219,97537.0,97535.0,0.3608]
[1738903303153,0.001,97537.0,97535.0,0.3608]
[1738903303360,0.001,97537.0,97536.0,0.205022]
[1738903303664,0.001,97546.0,97535.0,0.3608]
[1738903303865,0.00060001,97553.0,97547.0,0.2049969]
[1738903304061,0.2049819,97556.0,97548.0,0.2682953]
[1738903304364,0.2049938,97550.0,97548.0,0.0633]
[1738903306772,0.00015377,97559.0,97548.0,0.0633]
[1738903306969,0.00015377,97559.0,97552.0,0.2049873]
[1738903306970,0.20512797,97559.0,97552.0,0.2049873]
[1738903307664,0.2049812,97556.0,97549.0,0.0305]
[1738903308363,0.00015377,97559.0,97555.0,0.3608]
[1738903308558,0.00015377,97559.0,97555.0,0.5657806]
[1738903308760,0.00015377,97559.0,97555.0,0.3608]
[1738903309065,0.00015377,97559.0,97557.0,0.2049769]
[1738903309773,0.00115377,97559.0,97557.0,0.2049769]
[1738903310064,0.00015377,97559.0,97557.0,0.2049769]
[1738903310977,0.00115377,97559.0,97557.0,0.2109769]
[1738903311556,0.00115377,97559.0,97558.0,0.0664]
[1738903311759,0.00015377,97559.0,97558.0,0.0664]
[1738903312566,0.095,97589.0,97558.0,0.0664]
[1738903312774,0.2049358,97578.0,97571.0,0.3608]
[1738903312966,0.2049358,97578.0,97572.0,0.2049454]
[1738903313168,0.2049358,97578.0,97574.0,0.2049411]
[1738903313565,0.3608,97581.0,97558.0,0.004]
[1738903313771,0.2049736,97559.0,97558.0,0.004]
[1738903314474,0.3608,97573.0,97559.0,0.2049718]
[1738903314770,0.3608,97573.0,97560.0,0.12049602]
[1738903314967,0.2049655,97563.0,97559.0,0.2049718]
[1738903315673,0.2049655,97563.0,97559.0,0.2079718]
[1738903316477,0.3608,97573.0,97559.0,0.2079718]
[1738903316478,0.2049673,97562.0,97559.0,0.2079718]
[1738903316867,0.2049673,97562.0,97559.0,0.2119718]
[1738903317461,0.2049673,97562.0,97559.0,0.2079718]
[1738903317669,0.2049673,97562.0,97559.0,0.2119718]
[1738903317870,0.2049673,97562.0,97559.0,0.2089718]
[1738903318079,0.2049673,97562.0,97559.0,0.2119718]
[1738903318374,0.0512287,97587.0,97565.0,0.2049603]
[1738903318375,0.2049226,97584.0,97565.0,0.2049603]
[1738903318574,0.0512287,97587.0,97569.0,0.2049523]
[1738903318766,0.2049449,97573.0,97564.0,0.3608]
[1738903318963,0.2049449,97573.0,97570.0,0.2049504]
[1738903319164,0.12049602,97590.0,97570.0,0.2049504]
[1738903319370,0.2049459,97573.0,97570.0,0.2049504]
[1738903319869,0.2049589,97566.0,97565.0,0.002]
[1738903320674,0.2049589,97566.0,97565.0,0.001]
[1738903320973,0.2049507,97570.0,97565.0,0.205961]
[1738903321275,0.2049507,97570.0,97565.0,0.204961]
[1738903321470,0.2049576,97567.0,97565.0,0.205961]
[1738903321878,0.51426268,97583.0,97565.0,0.205961]
[1738903321879,0.17172872,97580.0,97565.0,0.002]
[1738903322075,0.2049571,97567.0,97565.0,0.002]
[1738903322301,0.2049571,97567.0,97566.0,0.2049589]
[1738903322466,0.2049535,97569.0,97566.0,0.2049589]
[1738903322873,0.2049535,97569.0,97565.0,0.002]
[1738903323075,0.2049589,97566.0,97565.0,0.003]
[1738903323870,0.2049421,97574.0,97566.0,0.001]
[1738903324074,0.2049568,97567.0,97566.0,0.001]
[1738903324581,0.2049568,97567.0,97565.0,0.5667608]
[1738903324882,0.2049568,97567.0,97565.0,0.5687608]
[1738903325070,0.3608,97575.0,97570.0,0.2049497]
[1738903325071,0.2049493,97571.0,97570.0,0.2049497]
[1738903325271,0.3608,97575.0,97570.0,0.2049497]
[1738903325676,0.204947,97572.0,97570.0,0.2049497]
[1738903326080,0.3608,97575.0,97570.0,0.2049497]
[1738903326276,0.2049484,97571.0,97566.0,0.0316]
[1738903326475,0.2049484,97571.0,97566.0,0.03164133]
[1738903326873,0.3608,97583.0,97566.0,0.03164133]
[1738903327169,0.2049559,97568.0,97566.0,0.03064133]
[1738903327372,0.001,97571.0,97566.0,0.23559973]
[1738903327578,0.2059496,97571.0,97566.0,0.23559973]
[1738903327777,0.2049507,97570.0,97566.0,0.23559973]
[1738903327970,0.2049507,97570.0,97566.0,0.23659973]
[1738903328869,0.3608,97583.0,97566.0,0.03164133]
[1738903329071,0.3608,97583.0,97566.0,0.001]
[1738903329072,0.23380593,97570.0,97566.0,0.001]
[1738903329783,0.2049568,97567.0,97566.0,0.001]
[1738903330577,0.2039627,97565.0,97559.0,0.00994508]
[1738903330783,0.2039627,97565.0,97564.0,0.3608]
[1738903330984,0.43875833,97570.0,97564.0,0.3608]
[1738903331488,0.23380593,97570.0,97569.0,0.2049526]
[1738903331892,0.18397485,97571.0,97570.0,0.2049505]
[1738903332387,0.27380685,97599.0,97583.0,0.2049214]
[1738903332388,0.2049071,97591.0,97583.0,0.2049214]
[1738903332575,0.2049071,97591.0,97583.0,0.5657214]
[1738903332783,0.2049071,97591.0,97584.0,0.2049211]
[1738903333184,0.2048963,97596.0,97584.0,0.2049211]
[1738903333385,0.2048963,97596.0,97584.0,0.2374211]
[1738903333782,0.21991393,97585.0,97584.0,0.2374211]
[1738903333977,0.21991393,97585.0,97584.0,0.5982211]
[1738903334178,0.22591393,97585.0,97584.0,0.5992211]
[1738903334583,0.21891393,97585.0,97584.0,0.5992211]
[1738903334784,0.22591393,97585.0,97584.0,0.6002211]
[1738903335285,0.15332793,97597.0,97584.0,0.3953]
[1738903335490,0.41776763,97617.0,97596.0,0.3608]
[1738903335691,0.41776763,97617.0,97611.0,0.3608]
[1738903335881,0.2048543,97616.0,97611.0,0.3608]
[1738903337085,0.00553824,97612.0,97611.0,0.3608]
[1738903337787,0.00153824,97612.0,97611.0,0.3608]
[1738903337989,0.00853824,97612.0,97611.0,0.3608]
[1738903338490,0.00553824,97612.0,97611.0,0.3608]
[1738903338689,0.00853824,97612.0,97611.0,0.3608]
[1738903339693,0.00753824,97612.0,97611.0,0.3608]
[1738903339890,0.21240054,97612.0,97611.0,0.3608]
[1738903342694,0.2108623,97612.0,97611.0,0.3608]
[1738903342896,0.006,97612.0,97611.0,0.3608]
[1738903343092,0.006,97612.0,97611.0,0.5656644]
[1738903344689,0.006,97612.0,97611.0,0.3608]
[1738903345389,0.006,97612.0,97602.0,0.00015369]
[1738903345390,0.2048812,97603.0,97602.0,0.00015369]
[1738903346301,0.2048812,97603.0,97602.0,0.01028082]
[1738903347600,0.20481453,97603.0,97602.0,0.01128082]
[1738903363994,0.20481453,97603.0,97602.0,0.00115369]
[1738903364308,0.2049169,97586.0,97585.0,0.18307828]
[1738903364502,0.5657169,97586.0,97585.0,0.18307828]
[1738903365404,0.5647169,97586.0,97585.0,0.18307828]
[1738903366107,0.5677169,97586.0,97585.0,0.015]
[1738903366309,0.5677169,97586.0,97585.0,0.02508904]
[1738903367109,0.002,97586.0,97585.0,0.23000804]
[1738903371705,0.2069169,97586.0,97585.0,0.07120904]
[1738903372008,0.2069169,97586.0,97585.0,0.02508904]
[1738903373209,0.002,97586.0,97585.0,0.02508904]
[1738903373520,0.002,97586.0,97585.0,0.23000804]
[1738903373819,0.2069169,97586.0,97585.0,0.02508904]
[1738903375004,0.002,97586.0,97585.0,0.23000804]
[1738903377706,0.002,97586.0,97581.0,0.24497729]
[1738903377920,0.2049253,97582.0,97581.0,0.24497729]
[1738903378920,0.1969337,97578.0,97577.0,0.24497729]
[1738903380211,0.1969337,97578.0,97577.0,0.44991309]
[1738903380410,0.2129271,97582.0,97577.0,0.60577729]
[1738903380706,0.2129271,97582.0,97581.0,0.2049274]
[1738903381321,0.2089271,97582.0,97581.0,0.2049274]
[1738903381640,0.004,97578.0,97577.0,0.81123309]
[1738903381816,0.004,97578.0,97577.0,0.81071309]
[1738903382213,0.001,97582.0,97577.0,0.60577729]
[1738903382422,0.002,97582.0,97581.0,0.2049274]
[1738903382623,0.002,97582.0,97581.0,0.2069274]
[1738903383126,0.2049112,97589.0,97585.0,0.204917]
[1738903383325,0.2049112,97589.0,97586.0,0.0636]
[1738903383823,0.2049139,97588.0,97586.0,0.0636]
[1738903384124,0.2049148,97587.0,97586.0,0.0636]
[1738903385425,0.2079148,97587.0,97586.0,0.0636]
[1738903386217,0.2119148,97587.0,97586.0,0.0636]
[1738903386418,0.2119148,97587.0,97586.0,0.07386493]
[1738903387923,0.2119148,97587.0,97586.0,0.27878183]
[1738903389329,0.007,97587.0,97586.0,0.27878183]
[1738903389819,0.007,97587.0,97586.0,0.32506183]
[1738903390716,0.2048737,97607.0,97586.0,0.12014493]
[1738903390929,0.2048737,97607.0,97594.0,0.5657001]
[1738903391127,0.15332711,97610.0,97594.0,0.5657001]
[1738903391329,0.2048773,97605.0,97594.0,0.5657001]
[1738903391518,0.15332711,97610.0,97594.0,0.5657001]
[1738903391721,0.2048796,97604.0,97594.0,0.5657001]
[1738903392124,0.00615369,97595.0,97594.0,0.5657001]
[1738903392827,0.00915369,97595.0,97594.0,0.5657001]
[1738903393618,0.01215369,97595.0,97594.0,0.5667001]
[1738903394322,0.01215369,97595.0,97594.0,0.5974001]
[1738903394323,0.21705169,97595.0,97594.0,0.5974001]
[1738903395532,0.21705169,97595.0,97594.0,0.3925]
[1738903396129,0.21705169,97595.0,97594.0,0.3618]
[1738903396431,0.57785169,97595.0,97594.0,0.001]
[1738903402038,0.57785169,97595.0,97594.0,0.2059001]
[1738903403538,0.21705169,97595.0,97594.0,0.2059001]
[1738903407038,0.01215369,97595.0,97594.0,0.2059001]
[1738903412138,0.21705169,97595.0,97594.0,0.001]
[1738903423254,0.26289169,97595.0,97594.0,1e-07]
[1738903424150,0.27310837,97595.0,97594.0,1e-07]
[1738903427946,0.50635115,97595.0,97594.0,1e-07]
[1738903429350,0.2049358,97577.0,97576.0,0.00015369]
[1738903430861,0.2049358,97577.0,97576.0,0.00215369]
[1738903431559,0.2049358,97577.0,97576.0,0.00415369]
[1738903436355,0.2049358,97577.0,97576.0,0.20909159]
[1738903437261,0.2049358,97577.0,97576.0,0.00415369]
[1738903442166,0.2049085,97590.0,97589.0,0.2049106]
[1738903443172,0.2049253,97582.0,97581.0,0.0613]
[1738903443968,0.2049253,97582.0,97581.0,0.2662274]
[1738903444365,0.2049166,97587.0,97585.0,0.2049179]
[1738903444566,0.2049166,97587.0,97586.0,0.0312]
[1738903444961,0.003,97590.0,97586.0,0.0312]
[1738903445157,0.003,97590.0,97589.0,0.2049106]
[1738903445366,0.35827584,97593.0,97592.0,0.2049043]
[1738903446865,0.2049039,97593.0,97592.0,0.2049043]
[1738903447460,0.2069039,97593.0,97592.0,0.2049043]
[1738903448063,0.2099039,97593.0,97592.0,0.2049043]
[1738903448865,0.005,97593.0,97592.0,0.2049043]
[1738903449358,0.003,97593.0,97592.0,0.2049043]
[1738903449563,0.006,97593.0,97592.0,0.2049043]
[1738903449962,0.003,97593.0,97592.0,0.2049043]
[1738903450273,0.006,97593.0,97592.0,0.2049043]
[1738903450471,0.003,97593.0,97592.0,0.2049043]
[1738903450665,0.005,97593.0,97592.0,0.2049043]
[1738903451064,0.005,97593.0,97592.0,0.38877262]
[1738903451264,0.002,97593.0,97592.0,0.38877262]
[1738903452166,0.2069022,97593.0,97592.0,0.38877262]
[1738903452771,0.2049022,97593.0,97592.0,0.38877262]
[1738903454368,0.2049022,97593.0,97592.0,0.2049043]
[1738903457472,0.00015369,97595.0,97587.0,0.7222]
[1738903457679,0.00015369,97595.0,97594.0,0.2049001]
[1738903459470,0.00115369,97595.0,97594.0,0.2049001]
[1738903459672,0.20605169,97595.0,97594.0,0.2049001]
[1738903460774,0.20605169,97595.0,97587.0,0.72412]
[1738903460775,0.2049108,97590.0,97589.0,0.204909]
[1738903461977,0.2049108,97590.0,97589.0,0.206909]
[1738903462480,0.2049108,97590.0,97589.0,0.207909]
[1738903463477,0.2059108,97590.0,97589.0,0.204909]
[1738903463680,0.2079108,97590.0,97589.0,0.204909]
[1738903464079,0.2079108,97590.0,97589.0,0.565709]
[1738903464276,0.2079108,97590.0,97589.0,0.204909]
[1738903464776,0.2079108,97590.0,97589.0,0.565709]
[1738903465483,0.003,97590.0,97589.0,0.565709]
[1738903466077,0.003,97590.0,97589.0,0.204909]
[1738903466279,0.003,97590.0,97589.0,0.565709]
[1738903466877,0.001,97590.0,97589.0,0.565709]
[1738903467082,0.001,97590.0,97589.0,0.566709]
[1738903467477,0.2059085,97590.0,97589.0,0.566709]
[1738903467992,0.2059085,97590.0,97589.0,0.565709]
[1738903468289,0.2079085,97590.0,97589.0,0.565709]
[1738903468588,0.2069085,97590.0,97589.0,0.566709]
[1738903468889,0.002,97590.0,97589.0,0.566709]
[1738903469281,0.003,97590.0,97589.0,0.565709]
[1738903470381,0.2049007,97594.0,97593.0,0.2049022]
[1738903472685,0.003,97594.0,97593.0,0.2049022]
[1738903472884,0.006,97594.0,97593.0,0.2049022]
[1738903473086,0.003,97594.0,97593.0,0.2049022]
[1738903473285,0.005,97594.0,97593.0,0.2049022]
[1738903474384,0.003,97594.0,97593.0,0.2049022]
[1738903475487,0.002,97594.0,97593.0,0.2049022]
[1738903475888,0.00015369,97595.0,97589.0,0.54489951]
[1738903476093,0.002,97594.0,97589.0,0.54437951]
[1738903476294,0.002,97594.0,97593.0,0.2049022]
[1738903477195,0.001,97594.0,97593.0,0.2049022]
[1738903478093,0.20505269,97595.0,97594.0,0.2049001]
[1738903479194,0.00015369,97595.0,97594.0,0.2049001]
[1738903479790,0.00215369,97595.0,97594.0,0.2049001]
[1738903479990,0.00515369,97595.0,97594.0,0.2049001]
[1738903480597,0.00215369,97595.0,97594.0,0.2049001]
[1738903481789,0.00015369,97595.0,97594.0,0.2049001]
[1738903481992,0.00015369,97595.0,97594.0,0.2059001]
[1738903482193,0.00115369,97595.0,97594.0,0.2059001]
[1738903482499,0.00115369,97595.0,97594.0,0.2049001]
[1738903483291,0.2049001,97594.0,97593.0,0.30370584]
[1738903484994,0.2049001,97594.0,97593.0,0.66450584]
[1738903485296,0.2089001,97594.0,97593.0,0.66450584]
[1738903485696,0.2089001,97594.0,97593.0,0.3608]
[1738903486000,0.2049022,97593.0,97592.0,0.3608]
[1738903486201,0.2049043,97592.0,97591.0,0.30370584]
[1738903486605,0.2049043,97592.0,97591.0,0.50861224]
[1738903487797,0.004,97594.0,97593.0,0.2049022]
[1738903488103,0.00015369,97595.0,97594.0,0.2049001]
[1738903489594,0.00015369,97595.0,97594.0,0.2069001]
[1738903490396,0.20505169,97595.0,97594.0,0.2069001]
[1738903491205,0.20505169,97595.0,97594.0,0.2059001]
[1738903491808,0.20605169,97595.0,97594.0,0.001]
[1738903492009,0.00115369,97595.0,97591.0,0.5657047]
[1738903492209,0.2049043,97592.0,97591.0,0.81105109]
[1738903494803,0.2059043,97592.0,97591.0,0.5657047]
[1738903496405,0.001,97592.0,97591.0,0.5657047]
[1738903497908,0.001,97592.0,97591.0,0.86941054]
[1738903500510,0.00015369,97595.0,97594.0,0.2049001]
[1738903501610,0.00115369,97595.0,97594.0,0.2049001]
[1738903502116,0.00215369,97595.0,97594.0,0.2049001]
[1738903505322,0.2048604,97613.0,97611.0,0.2048639]
[1738903506118,0.0636,97616.0,97611.0,0.2048639]
[1738903506320,0.2048623,97612.0,97611.0,0.2048639]
[1738903507221,0.2048623,97612.0,97611.0,0.2058639]
[1738903507520,0.016,97613.0,97612.0,0.2048623]
[1738903508014,0.15337194,97617.0,97611.0,0.001]
[1738903508214,0.007,97612.0,97611.0,0.2068644]
[1738903508726,0.15337194,97617.0,97616.0,0.2048539]
[1738903508921,0.15337194,97617.0,97616.0,0.5656539]
[1738903510322,0.15937194,97617.0,97616.0,0.5656539]
[1738903510813,0.15337194,97617.0,97616.0,0.5656539]
[1738903511013,0.15937194,97617.0,97616.0,0.5666539]
[1738903511616,0.16637194,97617.0,97616.0,0.5676539]
[1738903512420,0.013,97617.0,97616.0,0.5676539]
[1738903521829,0.2047948,97645.0,97624.0,0.0512089]
[1738903522033,0.5655977,97643.0,97638.0,0.2048078]
[1738903522331,0.2665997,97642.0,97638.0,0.2048078]
[1738903522526,0.0618,97642.0,97638.0,0.2048078]
[1738903522731,0.2048033,97641.0,97638.0,0.2048078]
[1738903523030,0.0618,97642.0,97638.0,0.2048078]
[1738903523229,0.2375057,97639.0,97638.0,0.2048078]
[1738903523633,0.2455057,97639.0,97638.0,0.2048078]
[1738903524132,0.2555057,97639.0,97638.0,0.2058078]
[1738903524726,0.2555057,97639.0,97638.0,0.2068078]
[1738903525126,0.2555057,97639.0,97638.0,0.002]
[1738903527635,0.2555057,97639.0,97638.0,0.2068077]
[1738903528836,0.0507,97639.0,97638.0,0.2068077]
[1738903530039,0.018,97639.0,97638.0,0.2068077]
[1738903533557,0.009,97639.0,97638.0,0.2058077]
[1738903533858,0.0015373,97647.0,97646.0,0.204791]
[1738903534056,0.0015373,97647.0,97646.0,0.565591]
[1738903535057,0.0015373,97647.0,97646.0,0.566591]
[1738903535851,0.2047617,97660.0,97647.0,0.2047889]
[1738903536149,0.2047647,97659.0,97647.0,0.2356889]
[1738903536753,0.094,97669.0,97647.0,0.2356889]
[1738903537160,0.2987434,97669.0,97664.0,0.2047532]
[1738903538060,0.2987434,97669.0,97659.0,0.15879982]
[1738903538061,0.2987434,97669.0,97659.0,0.07939991]
[1738903538561,0.3037434,97669.0,97659.0,0.07939991]
[1738903538761,0.3037434,97669.0,97666.0,0.2047488]
[1738903539062,0.2730434,97669.0,97668.0,0.2047448]
[1738903539750,0.2790434,97669.0,97668.0,0.2047448]
[1738903540153,0.2680434,97669.0,97668.0,0.2047448]
[1738903540360,0.0703,97669.0,97668.0,0.2057448]
[1738903540558,0.2750427,97669.0,97668.0,0.2057448]
[1738903543063,0.2750427,97669.0,97668.0,0.001]
[1738903545764,0.2750427,97669.0,97668.0,0.2057448]
[1738903550470,0.2750427,97669.0,97668.0,0.001]
[1738903557572,0.2047658,97658.0,97657.0,0.0001536]
[1738903557766,0.2047826,97650.0,97649.0,0.1839589]
[1738903557967,0.3608,97650.0,97646.0,0.24527854]
[1738903558169,0.2047889,97647.0,97646.0,0.24527854]
[1738903558873,0.3,97647.0,97637.0,1e-08]
[1738903559062,0.3608,97638.0,97606.0,0.00153633]
[1738903559266,0.5656539,97616.0,97615.0,0.42492399]
[1738903559466,0.5646539,97616.0,97615.0,0.42492399]
[1738903559971,0.5606539,97616.0,97615.0,0.42492399]
[1738903560168,0.5606539,97616.0,97615.0,0.43392399]
[1738903560969,0.5606539,97616.0,97615.0,0.42492399]
[1738903561169,0.5636539,97616.0,97615.0,0.42492399]
[1738903561567,0.5646539,97616.0,97615.0,0.43292399]
[1738903562177,0.42478484,97616.0,97615.0,0.001]
[1738903562577,0.42178484,97616.0,97615.0,0.001]
[1738903562781,0.42578484,97616.0,97615.0,0.001]
[1738903563383,0.63063874,97616.0,97615.0,0.001]
[1738903564872,0.5808198,97616.0,97615.0,0.001]
[1738903566169,0.3658,97616.0,97615.0,0.205856]
[1738903566674,0.3658,97616.0,97615.0,0.001]
[1738903568179,0.3658,97616.0,97606.0,0.0001536]
[1738903568377,0.2048728,97607.0,97606.0,0.0001536]
[1738903570773,0.2078728,97607.0,97606.0,0.0001536]
[1738903584587,0.2078728,97607.0,97590.0,0.0306]
[1738903584588,0.2049063,97591.0,97590.0,0.0306]
[1738903584784,0.5657063,97591.0,97590.0,0.0306]
[1738903585673,0.5667063,97591.0,97590.0,0.0376]
[1738903587079,0.5667063,97591.0,97590.0,0.0406]
[1738903589182,0.61653233,97591.0,97590.0,0.0406]
[1738903591482,0.79295209,97591.0,97590.0,0.0406]
[1738903591781,0.79295209,97591.0,97590.0,0.2455084]
[1738903592588,0.58804579,97591.0,97590.0,0.2455084]
[1738903594993,0.41162603,97591.0,97590.0,0.2455084]
[1738903597985,0.05082603,97591.0,97590.0,0.2455084]
[1738903600590,0.234983,97591.0,97590.0,0.2455084]
[1738903601806,0.4398893,97591.0,97590.0,0.0406]
[1738903603490,0.2657785,97591.0,97590.0,0.0406]
[1738903605490,0.44133797,97591.0,97590.0,0.0406]
[1738903606491,0.2049168,97586.0,97585.0,0.0319]
[1738903606691,0.5657168,97586.0,97585.0,0.0319]
[1738903607697,0.5667168,97586.0,97585.0,0.0459]
[1738903609702,0.5667168,97586.0,97585.0,0.0429]
[1738903610200,0.5657168,97586.0,97585.0,0.0379]
[1738903610400,0.61554283,97586.0,97585.0,0.0379]
[1738903613691,0.5657168,97586.0,97585.0,0.0379]
[1738903620612,0.15356929,97589.0,97585.0,0.0379]
[1738903621606,0.15356929,97589.0,97588.0,0.5657125]
[1738903622704,0.35847969,97589.0,97588.0,0.5657125]
[1738903622900,0.15356929,97589.0,97588.0,0.5657125]
[1738903623105,0.10366929,97589.0,97588.0,0.5657125]
[1738903623305,0.2049043,97592.0,97591.0,0.2049062]
[1738903625699,0.2049043,97592.0,97591.0,0.2069062]
[1738903629205,0.2069043,97592.0,97591.0,0.2049062]
[1738903629411,0.2049104,97589.0,97588.0,0.37108982]
[1738903629712,0.2049167,97586.0,97585.0,0.0319]
[1738903630607,0.2029167,97586.0,97585.0,0.0319]
[1738903632206,0.2029167,97586.0,97585.0,0.0349]
[1738903632812,0.2039167,97586.0,97585.0,0.0349]
[1738903633116,0.2039167,97586.0,97585.0,0.0339]
[1738903634109,0.2039167,97586.0,97585.0,0.2388188]
[1738903634714,0.2039167,97586.0,97585.0,0.0339]
[1738903635718,0.5647167,97586.0,97585.0,0.0339]
[1738903635907,0.5647167,97586.0,97585.0,0.002]
[1738903638413,0.61454649,97586.0,97585.0,0.002]
[1738903639009,0.62496369,97586.0,97585.0,0.002]
[1738903641115,0.42204699,97586.0,97581.0,0.00015369]
[1738903641321,0.15888186,97582.0,97572.0,0.0312]
[1738903641516,0.2049671,97562.0,97559.0,0.0303]
[1738903641826,0.2049671,97562.0,97560.0,0.033]
[1738903642319,0.2009671,97562.0,97560.0,0.033]
[1738903642915,0.1969671,97562.0,97560.0,0.033]
[1738903644817,0.1989671,97562.0,97561.0,0.0383]
[1738903645522,0.5597671,97562.0,97561.0,0.0383]
[1738903647929,0.5597671,97562.0,97561.0,0.007]
[1738903651120,0.5587671,97562.0,97561.0,0.004]
[1738903651627,0.5587671,97562.0,97561.0,0.2089692]
[1738903651924,0.1979671,97562.0,97561.0,0.2089692]
[1738903652127,0.1979671,97562.0,97561.0,0.2059692]
[1738903652921,0.1979671,97562.0,97561.0,0.001]
[1738903656325,0.204986,97553.0,97552.0,0.00015369]
[1738903656519,0.565786,97553.0,97552.0,0.00015369]
[1738903657119,0.562786,97553.0,97552.0,0.00015369]
[1738903657324,0.561786,97553.0,97552.0,0.00015369]
[1738903657726,0.562786,97553.0,97552.0,0.00315369]
[1738903657929,0.562786,97553.0,97552.0,0.00715369]
[1738903660132,0.562786,97553.0,97552.0,0.00415369]
[1738903660432,0.562786,97553.0,97552.0,0.00015369]
[1738903660727,0.565786,97553.0,97552.0,0.00015369]
[1738903661119,0.57588819,97553.0,97552.0,0.00015369]
[1738903661519,0.204986,97553.0,97552.0,0.00015369]
[1738903661831,0.204986,97553.0,97552.0,0.20514179]
[1738903662224,0.204986,97553.0,97552.0,0.00015369]
[1738903663935,0.204986,97553.0,97552.0,0.06425369]
[1738903667237,0.204986,97553.0,97552.0,0.26924179]
[1738903668736,0.204986,97553.0,97552.0,0.63004179]
[1738903671927,0.004,97553.0,97552.0,0.63004179]
[1738903672333,0.208986,97553.0,97552.0,0.63004179]
[1738903673637,0.208986,97553.0,97552.0,0.42505369]
[1738903674038,0.208986,97553.0,97552.0,0.06425369]
[1738903674641,0.208986,97553.0,97552.0,9e-08]
[1738903674937,0.254746,97553.0,97552.0,9e-08]
[1738903677139,0.2050302,97532.0,97531.0,0.0317]
[1738903677437,0.5658302,97532.0,97531.0,0.0317]
[1738903678942,0.5678302,97532.0,97531.0,0.0347]
[1738903679840,0.5678302,97532.0,97531.0,0.2397323]
[1738903679841,0.002,97532.0,97531.0,0.2397323]
[1738903681242,0.001,97532.0,97531.0,0.2367323]
[1738903681426,0.2060302,97532.0,97531.0,0.2367323]
[1738903686130,0.2060302,97532.0,97531.0,0.0317]
[1738903687832,0.21613295,97532.0,97531.0,0.0317]
[1738903688844,0.2050533,97521.0,97520.0,0.2050547]
[1738903690542,0.2050442,97526.0,97525.0,0.2050411]
[1738903691954,0.2060442,97526.0,97525.0,0.2050411]
[1738903692647,0.2070442,97526.0,97525.0,0.2060411]
[1738903693846,0.2070442,97526.0,97525.0,0.001]
[1738903695449,0.2070442,97526.0,97500.0,0.1]
[1738903695450,0.40856,97526.0,97500.0,0.1]
[1738903695643,0.2050953,97501.0,97500.0,0.1]
[1738903696256,0.2040953,97501.0,97500.0,0.1]
[1738903697451,0.2040953,97501.0,97500.0,0.3050975]
[1738903697854,0.2050953,97501.0,97500.0,0.3050975]
[1738903698058,0.2050953,97501.0,97500.0,0.1]
[1738903698652,0.2040953,97501.0,97500.0,0.1]
[1738903700058,0.2050953,97501.0,97500.0,0.3050942]
[1738903701253,0.2050953,97501.0,97500.0,0.1]
[1738903702362,0.2050953,97501.0,97500.0,0.3050974]
[1738903709164,0.2050953,97501.0,97500.0,0.1]
[1738903714161,0.2050953,97501.0,97500.0,0.3050974]
[1738903714866,0.2050953,97503.0,97502.0,0.2050884]
[1738903717466,0.001,97503.0,97502.0,0.2050884]
[1738903722577,0.001,97503.0,97502.0,0.21532654]
[1738903723680,0.00015378,97510.0,97509.0,0.2050785]
[1738903724780,0.00215378,97510.0,97509.0,0.2050785]
[1738903724974,0.15330567,97520.0,97519.0,0.2050575]
[1738903725170,0.15330567,97520.0,97519.0,0.5658575]
[1738903726482,0.2050386,97528.0,97527.0,0.2050386]
[1738903726877,0.2050554,97520.0,97515.0,0.2050658]
[1738903727179,0.2050638,97516.0,97515.0,0.2050658]
[1738903728279,0.2050638,97516.0,97512.0,0.3608]
[1738903728280,0.2050542,97521.0,97520.0,0.2050545]
[1738903728678,0.004,97528.0,97512.0,0.3608]
[1738903729000,0.2050701,97513.0,97512.0,0.3608]
[1738903729180,0.2050743,97511.0,97510.0,0.00015378]
[1738903729377,0.2050743,97511.0,97510.0,0.20523018]
[1738903730588,0.2070743,97511.0,97510.0,0.20523018]
[1738903731178,0.2080743,97511.0,97510.0,0.20523018]